[Event "*** SCC Grand Prix: Titled Tuesday Blitz"]
[Site "Chess.com"]
[Date "2020.06.09"]
[Round "4"]
[White "Falia-p"]
[Black "MisiekZielony"]
[Result "0-1"]
[WhiteElo "2395"]
[BlackElo "2138"]
[TimeControl "180+1"]
[EndTime "9:40:18 PDT"]
[Termination "MisiekZielony won on time"]

1. e4 {[%clk 0:03:00.9]} 1... Nf6 {[%clk 0:02:58.7]} 2. e5 {[%clk 0:02:59.7]}
2... Nd5 {[%clk 0:02:58.6]} 3. d4 {[%clk 0:03:00.6]} 3... d6 {[%clk 0:02:58.7]}
4. Nf3 {[%clk 0:03:00.6]} 4... Bg4 {[%clk 0:02:58.6]} 5. Be2 {[%clk 0:02:59.5]}
5... e6 {[%clk 0:02:58.6]} 6. O-O {[%clk 0:02:58.3]} 6... Be7 {[%clk 0:02:58.5]}
7. h3 {[%clk 0:02:56.1]} 7... Bh5 {[%clk 0:02:58.3]} 8. c4 {[%clk 0:02:54.4]}
8... Nb6 {[%clk 0:02:58.4]} 9. Nc3 {[%clk 0:02:53.7]} 9... O-O {[%clk
0:02:58.4]} 10. exd6 {[%clk 0:02:52.9]} 10... cxd6 {[%clk 0:02:58]} 11. b3
{[%clk 0:02:48.7]} 11... a6 {[%clk 0:02:50.6]} 12. Bb2 {[%clk 0:02:48.1]} 12...
d5 {[%clk 0:02:50.2]} 13. c5 {[%clk 0:02:46.7]} 13... N6d7 {[%clk 0:02:46.7]}
14. b4 {[%clk 0:02:45.4]} 14... Nc6 {[%clk 0:02:46.2]} 15. a3 {[%clk 0:02:38.7]}
15... Bf6 {[%clk 0:02:45.6]} 16. Na4 {[%clk 0:02:27.5]} 16... Bxf3 {[%clk
0:02:37.7]} 17. Bxf3 {[%clk 0:02:22.5]} 17... b5 {[%clk 0:02:37.2]} 18. cxb6
{[%clk 0:02:17.6]} 18... Nxb6 {[%clk 0:02:37.2]} 19. Nxb6 {[%clk 0:02:14.3]}
19... Qxb6 {[%clk 0:02:36.7]} 20. Qd3 {[%clk 0:01:55.5]} 20... Bxd4 {[%clk
0:02:31.1]} 21. Bxd4 {[%clk 0:01:52.1]} 21... Qxd4 {[%clk 0:02:18]} 22. Qc2
{[%clk 0:01:48.3]} 22... Qb6 {[%clk 0:02:10.3]} 23. Qb2 {[%clk 0:01:34.2]} 23...
Nd4 {[%clk 0:01:59.5]} 24. Bg4 {[%clk 0:01:26.9]} 24... Rfc8 {[%clk 0:01:42.3]}
25. Rfd1 {[%clk 0:01:22.1]} 25... Nb5 {[%clk 0:01:33.9]} 26. Rd3 {[%clk
0:01:18.3]} 26... Nd6 {[%clk 0:01:19]} 27. Re1 {[%clk 0:01:00.1]} 27... Ne4
{[%clk 0:01:07.2]} 28. Bf3 {[%clk 0:00:47.4]} 28... Nf6 {[%clk 0:01:06.7]} 29.
Bd1 {[%clk 0:00:44.9]} 29... Rc7 {[%clk 0:01:00.8]} 30. Rg3 {[%clk 0:00:43.9]}
30... d4 {[%clk 0:00:57.7]} 31. Bc2 {[%clk 0:00:30.5]} 31... Rac8 {[%clk
0:00:54]} 32. Bb1 {[%clk 0:00:30.4]} 32... Rc3 {[%clk 0:00:49.7]} 33. Rg5 {[%clk
0:00:26.4]} 33... Qc7 {[%clk 0:00:46]} 34. Qd2 {[%clk 0:00:23.4]} 34... Rc1
{[%clk 0:00:36.3]} 35. Re5 {[%clk 0:00:21.1]} 35... Rxe1+ {[%clk 0:00:31.8]} 36.
Rxe1 {[%clk 0:00:20.9]} 36... Qc3 {[%clk 0:00:29.7]} 37. Qe2 {[%clk 0:00:15.2]}
37... Rc6 {[%clk 0:00:24.9]} 38. g4 {[%clk 0:00:14.1]} 38... h6 {[%clk
0:00:23.5]} 39. h4 {[%clk 0:00:13.7]} 39... Qc4 {[%clk 0:00:13.2]} 40. Qf3
{[%clk 0:00:09.4]} 40... Qd5 {[%clk 0:00:12.1]} 41. Qd3 {[%clk 0:00:06]} 41...
Rc3 {[%clk 0:00:09.4]} 42. Qxa6 {[%clk 0:00:04.6]} 42... g6 {[%clk 0:00:07.6]}
0-1

[Event "*** SCC Grand Prix: Titled Tuesday Blitz"]
[Site "Chess.com"]
[Date "2020.06.09"]
[Round "4"]
[White "angryhorse9"]
[Black "gumimis"]
[Result "1-0"]
[WhiteElo "2330"]
[BlackElo "2143"]
[TimeControl "180+1"]
[EndTime "9:40:18 PDT"]
[Termination "angryhorse9 won by checkmate"]

1. e4 {[%clk 0:03:00.9]} 1... c5 {[%clk 0:02:59.3]} 2. Nf3 {[%clk 0:03:01.1]}
2... d6 {[%clk 0:02:59.4]} 3. Bb5+ {[%clk 0:03:01]} 3... Nd7 {[%clk 0:02:59.3]}
4. Ba4 {[%clk 0:03:00.7]} 4... Nf6 {[%clk 0:02:56.1]} 5. O-O {[%clk 0:03:00.7]}
5... e6 {[%clk 0:02:43.3]} 6. d4 {[%clk 0:02:52.4]} 6... cxd4 {[%clk 0:02:17.3]}
7. Nxd4 {[%clk 0:02:26.7]} 7... Be7 {[%clk 0:02:16.4]} 8. Nc3 {[%clk 0:02:21.5]}
8... O-O {[%clk 0:02:16]} 9. Bxd7 {[%clk 0:02:21.6]} 9... Bxd7 {[%clk
0:02:13.8]} 10. Be3 {[%clk 0:02:21.9]} 10... Rc8 {[%clk 0:02:11.1]} 11. Qd3
{[%clk 0:02:18.6]} 11... a6 {[%clk 0:02:07.5]} 12. h3 {[%clk 0:02:16.9]} 12...
b5 {[%clk 0:02:07.1]} 13. a3 {[%clk 0:02:17]} 13... Qc7 {[%clk 0:01:30.2]} 14.
Rad1 {[%clk 0:02:14.4]} 14... Rfd8 {[%clk 0:01:30.3]} 15. f4 {[%clk 0:02:07.2]}
15... Qc4 {[%clk 0:01:23.2]} 16. Qd2 {[%clk 0:02:05.6]} 16... d5 {[%clk
0:01:19.7]} 17. e5 {[%clk 0:01:48.9]} 17... Ne4 {[%clk 0:01:19]} 18. Nxe4 {[%clk
0:01:48.9]} 18... dxe4 {[%clk 0:01:19.9]} 19. c3 {[%clk 0:01:49.4]} 19... Be8
{[%clk 0:01:15.9]} 20. Qf2 {[%clk 0:01:40.4]} 20... Rd5 {[%clk 0:00:57.6]} 21.
Qg3 {[%clk 0:01:37.3]} 21... Qc7 {[%clk 0:00:50]} 22. Nf5 {[%clk 0:01:05]} 22...
Bf8 {[%clk 0:00:39.9]} 23. Rxd5 {[%clk 0:01:03.1]} 23... exd5 {[%clk 0:00:40.1]}
24. Nd4 {[%clk 0:01:02.1]} 24... Bd7 {[%clk 0:00:27.1]} 25. f5 {[%clk
0:01:00.5]} 25... Bc5 {[%clk 0:00:11.5]} 26. Kh1 {[%clk 0:00:55.6]} 26... Re8
{[%clk 0:00:05.5]} 27. Bf4 {[%clk 0:00:54.5]} 27... Qb6 {[%clk 0:00:05.1]} 28.
f6 {[%clk 0:00:48.3]} 28... g6 {[%clk 0:00:04.9]} 29. Qh4 {[%clk 0:00:48.3]}
29... Bf8 {[%clk 0:00:04.7]} 30. Bh6 {[%clk 0:00:35.9]} 30... Qc5 {[%clk
0:00:04.8]} 31. Bf4 {[%clk 0:00:31.3]} 31... a5 {[%clk 0:00:04.2]} 32. Rc1
{[%clk 0:00:22.2]} 32... b4 {[%clk 0:00:04.3]} 33. axb4 {[%clk 0:00:22.8]} 33...
axb4 {[%clk 0:00:04.8]} 34. Kh2 {[%clk 0:00:23.7]} 34... bxc3 {[%clk 0:00:05.2]}
35. bxc3 {[%clk 0:00:24.6]} 35... Qc4 {[%clk 0:00:04.8]} 36. Rc2 {[%clk
0:00:23.7]} 36... Qd3 {[%clk 0:00:04.7]} 37. Bh6 {[%clk 0:00:21]} 37... e3
{[%clk 0:00:02.5]} 38. Bxf8 {[%clk 0:00:20.7]} 38... Qe4 {[%clk 0:00:01.2]} 39.
Qh6 {[%clk 0:00:20.4]} 39... Qxe5+ {[%clk 0:00:01.4]} 40. Kh1 {[%clk 0:00:19.6]}
40... Qxf6 {[%clk 0:00:01.7]} 41. Bc5 {[%clk 0:00:19.9]} 41... Qf1+ {[%clk
0:00:01.9]} 42. Kh2 {[%clk 0:00:20.4]} 42... e2 {[%clk 0:00:02.3]} 43. Nxe2
{[%clk 0:00:20.8]} 43... Rxe2 {[%clk 0:00:02.9]} 44. Qf8# {[%clk 0:00:20.2]} 1-0

[Event "*** SCC Grand Prix: Titled Tuesday Blitz"]
[Site "Chess.com"]
[Date "2020.06.09"]
[Round "4"]
[White "BronceYSueno"]
[Black "mamonika"]
[Result "1-0"]
[WhiteElo "2252"]
[BlackElo "1928"]
[TimeControl "180+1"]
[EndTime "9:40:19 PDT"]
[Termination "BronceYSueno won by checkmate"]

1. Nf3 {[%clk 0:03:00.9]} 1... d5 {[%clk 0:02:38.5]} 2. c4 {[%clk 0:02:58.8]}
2... Nf6 {[%clk 0:02:36.5]} 3. g3 {[%clk 0:02:57.5]} 3... g6 {[%clk 0:02:35.6]}
4. cxd5 {[%clk 0:02:56.1]} 4... Nxd5 {[%clk 0:02:35.3]} 5. Nc3 {[%clk
0:02:56.7]} 5... Bg7 {[%clk 0:02:34.6]} 6. Bg2 {[%clk 0:02:55.5]} 6... Nxc3
{[%clk 0:02:29.9]} 7. bxc3 {[%clk 0:02:54.4]} 7... c5 {[%clk 0:02:29.5]} 8. O-O
{[%clk 0:02:53.3]} 8... Nc6 {[%clk 0:02:29.5]} 9. Bb2 {[%clk 0:02:33.1]} 9...
O-O {[%clk 0:02:27.2]} 10. Rc1 {[%clk 0:02:31.3]} 10... Be6 {[%clk 0:02:09.5]}
11. a3 {[%clk 0:02:30.1]} 11... Qb6 {[%clk 0:02:04.9]} 12. Ba1 {[%clk
0:02:29.5]} 12... Rfd8 {[%clk 0:02:02.4]} 13. Rb1 {[%clk 0:02:29.2]} 13... Qa6
{[%clk 0:01:58.9]} 14. Qc1 {[%clk 0:02:29.7]} 14... Qxe2 {[%clk 0:01:50.6]} 15.
Rxb7 {[%clk 0:02:28.8]} 15... Bd5 {[%clk 0:01:36.9]} 16. Re1 {[%clk 0:02:24.7]}
16... Qd3 {[%clk 0:01:37.1]} 17. Re3 {[%clk 0:02:20.2]} 17... Qf5 {[%clk
0:01:31.1]} 18. Nh4 {[%clk 0:01:53.4]} 18... Qh5 {[%clk 0:01:30.8]} 19. Bxd5
{[%clk 0:01:48]} 19... Qxd5 {[%clk 0:01:29.4]} 20. Nf3 {[%clk 0:01:42]} 20...
Nd4 {[%clk 0:01:24.7]} 21. cxd4 {[%clk 0:01:25.7]} 21... Qxb7 {[%clk 0:01:24.4]}
22. dxc5 {[%clk 0:01:25.8]} 22... Bxa1 {[%clk 0:01:13.7]} 23. Qxa1 {[%clk
0:01:26.7]} 23... Rab8 {[%clk 0:01:13.8]} 24. Qc3 {[%clk 0:01:23.7]} 24... Qb1+
{[%clk 0:01:01.4]} 25. Kg2 {[%clk 0:01:13.3]} 25... Rbc8 {[%clk 0:00:57.6]} 26.
Rxe7 {[%clk 0:01:11.3]} 26... Qf5 {[%clk 0:00:48.9]} 27. d4 {[%clk 0:00:58.6]}
27... a6 {[%clk 0:00:34.9]} 28. Re5 {[%clk 0:00:55.9]} 28... Qf6 {[%clk
0:00:29.8]} 29. Qc4 {[%clk 0:00:51.3]} 29... Rc7 {[%clk 0:00:21.5]} 30. Re4
{[%clk 0:00:50.3]} 30... Rdc8 {[%clk 0:00:21]} 31. Rf4 {[%clk 0:00:49.2]} 31...
Qe6 {[%clk 0:00:19.1]} 32. Qd3 {[%clk 0:00:41.3]} 32... Qd5 {[%clk 0:00:18.6]}
33. Qe3 {[%clk 0:00:28.6]} 33... Rb8 {[%clk 0:00:16.5]} 34. Re4 {[%clk
0:00:27.8]} 34... Rb3 {[%clk 0:00:15.6]} 35. Re8+ {[%clk 0:00:23.6]} 35... Kg7
{[%clk 0:00:15.5]} 36. Qf4 {[%clk 0:00:23.1]} 36... Rd7 {[%clk 0:00:09.2]} 37.
Re5 {[%clk 0:00:21.2]} 37... Qc6 {[%clk 0:00:07.1]} 38. Re3 {[%clk 0:00:16.8]}
38... Rxe3 {[%clk 0:00:06.6]} 39. fxe3 {[%clk 0:00:17.7]} 39... Qd5 {[%clk
0:00:05.1]} 40. Qe5+ {[%clk 0:00:14.6]} 40... Qxe5 {[%clk 0:00:05.5]} 41. Nxe5
{[%clk 0:00:15.5]} 41... Rc7 {[%clk 0:00:04.8]} 42. Kf3 {[%clk 0:00:16.1]} 42...
Kf6 {[%clk 0:00:04.4]} 43. Ke4 {[%clk 0:00:16.6]} 43... Ke6 {[%clk 0:00:04.3]}
44. d5+ {[%clk 0:00:15.2]} 44... Kf6 {[%clk 0:00:04]} 45. Kd4 {[%clk 0:00:15.7]}
45... Re7 {[%clk 0:00:02.9]} 46. Nc6 {[%clk 0:00:12.7]} 46... Rc7 {[%clk
0:00:01.9]} 47. e4 {[%clk 0:00:12.9]} 47... Kg7 {[%clk 0:00:01.4]} 48. Nb4
{[%clk 0:00:12.5]} 48... f5 {[%clk 0:00:01.8]} 49. e5 {[%clk 0:00:11.7]} 49...
Rd7 {[%clk 0:00:01.7]} 50. d6 {[%clk 0:00:11.9]} 50... a5 {[%clk 0:00:01.8]} 51.
Nd3 {[%clk 0:00:11.4]} 51... Kf7 {[%clk 0:00:02.2]} 52. Kd5 {[%clk 0:00:11.1]}
52... Rd8 {[%clk 0:00:02.1]} 53. c6 {[%clk 0:00:11]} 53... Rb8 {[%clk
0:00:02.3]} 54. e6+ {[%clk 0:00:11.4]} 54... Kf6 {[%clk 0:00:01.9]} 55. d7
{[%clk 0:00:11.6]} 55... Ke7 {[%clk 0:00:02]} 56. Nc5 {[%clk 0:00:11.5]} 56...
Rb5 {[%clk 0:00:01.8]} 57. c7 {[%clk 0:00:11.1]} 57... Rb1 {[%clk 0:00:01.6]}
58. d8=Q# {[%clk 0:00:10.9]} 1-0

[Event "*** SCC Grand Prix: Titled Tuesday Blitz"]
[Site "Chess.com"]
[Date "2020.06.09"]
[Round "4"]
[White "JoachimMouhamad"]
[Black "FranciscodelaF"]
[Result "1-0"]
[WhiteElo "2473"]
[BlackElo "2321"]
[TimeControl "180+1"]
[EndTime "9:40:20 PDT"]
[Termination "JoachimMouhamad won by resignation"]

1. e4 {[%clk 0:03:00.9]} 1... d5 {[%clk 0:03:00]} 2. exd5 {[%clk 0:02:59.3]}
2... Nf6 {[%clk 0:02:59.9]} 3. d4 {[%clk 0:02:57.9]} 3... Bg4 {[%clk 0:02:59.9]}
4. Nf3 {[%clk 0:02:52.7]} 4... Qxd5 {[%clk 0:02:58.9]} 5. Be2 {[%clk 0:02:49.7]}
5... e6 {[%clk 0:01:55.9]} 6. O-O {[%clk 0:02:44.7]} 6... Nc6 {[%clk 0:01:55.6]}
7. c4 {[%clk 0:02:27.9]} 7... Qd7 {[%clk 0:01:52.9]} 8. Be3 {[%clk 0:02:22.8]}
8... O-O-O {[%clk 0:01:51.4]} 9. Nbd2 {[%clk 0:01:55.5]} 9... h6 {[%clk
0:01:40.8]} 10. a3 {[%clk 0:01:51.9]} 10... g5 {[%clk 0:01:40]} 11. b4 {[%clk
0:01:50.1]} 11... Bd6 {[%clk 0:01:38]} 12. b5 {[%clk 0:01:40.3]} 12... Na5
{[%clk 0:01:34.3]} 13. Qa4 {[%clk 0:01:20.2]} 13... b6 {[%clk 0:01:33.8]} 14.
Rab1 {[%clk 0:00:58.2]} 14... Bf4 {[%clk 0:01:32.8]} 15. Nb3 {[%clk 0:00:56.4]}
15... Nxb3 {[%clk 0:00:57.1]} 16. Qxa7 {[%clk 0:00:51.1]} 16... Qd6 {[%clk
0:00:56.8]} 17. c5 {[%clk 0:00:43.4]} 17... bxc5 {[%clk 0:00:52.9]} 18. dxc5
{[%clk 0:00:42.6]} 18... Nxc5 {[%clk 0:00:52.3]} 19. Bxc5 {[%clk 0:00:41.4]}
19... Qd5 {[%clk 0:00:50.9]} 20. Rfd1 {[%clk 0:00:38.4]} 20... Qb7 {[%clk
0:00:50.9]} 21. Qa4 {[%clk 0:00:28]} 21... Rxd1+ {[%clk 0:00:47.9]} 22. Rxd1
{[%clk 0:00:26.9]} 22... Rd8 {[%clk 0:00:43.4]} 23. Rxd8+ {[%clk 0:00:26]} 23...
Kxd8 {[%clk 0:00:42.7]} 24. Qb4 {[%clk 0:00:26]} 24... Nd5 {[%clk 0:00:42.1]}
25. Qb2 {[%clk 0:00:23.3]} 25... Bxf3 {[%clk 0:00:22.7]} 26. Bxf3 {[%clk
0:00:22]} 26... Kd7 {[%clk 0:00:23.1]} 27. a4 {[%clk 0:00:21.5]} 27... Bd6
{[%clk 0:00:22.8]} 28. Bxd6 {[%clk 0:00:18.2]} 28... Kxd6 {[%clk 0:00:23.7]} 29.
a5 {[%clk 0:00:14.8]} 29... c6 {[%clk 0:00:23.7]} 30. b6 {[%clk 0:00:13.3]}
30... c5 {[%clk 0:00:22.1]} 31. Qb5 {[%clk 0:00:11.9]} 31... Qc6 {[%clk
0:00:22.5]} 32. Qxc6+ {[%clk 0:00:10.5]} 32... Kxc6 {[%clk 0:00:23.4]} 33. Kf1
{[%clk 0:00:07.9]} 33... Kb7 {[%clk 0:00:23.7]} 34. Ke2 {[%clk 0:00:07.6]} 34...
Ka6 {[%clk 0:00:24.1]} 35. Kd3 {[%clk 0:00:07.7]} 35... Nb4+ {[%clk 0:00:24.4]}
36. Kc4 {[%clk 0:00:07.7]} 36... Kxa5 {[%clk 0:00:25]} 37. Kxc5 {[%clk
0:00:07.4]} 37... Na6+ {[%clk 0:00:25.4]} 38. Kc6 {[%clk 0:00:07.2]} 38... Nb4+
{[%clk 0:00:25.5]} 39. Kc7 {[%clk 0:00:07]} 39... Na6+ {[%clk 0:00:25.9]} 40.
Kc6 {[%clk 0:00:05.5]} 40... Nb4+ {[%clk 0:00:26.1]} 41. Kc5 {[%clk 0:00:05.4]}
41... Na6+ {[%clk 0:00:26.1]} 42. Kd6 {[%clk 0:00:05.6]} 42... Kxb6 {[%clk
0:00:25.7]} 43. Ke7 {[%clk 0:00:06.1]} 43... Kc5 {[%clk 0:00:25.6]} 44. Kxf7
{[%clk 0:00:06.1]} 44... e5 {[%clk 0:00:26.2]} 45. Kg6 {[%clk 0:00:05.4]} 45...
Kd4 {[%clk 0:00:25.2]} 46. Kxh6 {[%clk 0:00:05.3]} 46... Nc5 {[%clk 0:00:26.1]}
47. Kxg5 {[%clk 0:00:05.1]} 47... Nd3 {[%clk 0:00:25.4]} 48. h4 {[%clk
0:00:04.2]} 48... Nxf2 {[%clk 0:00:26.3]} 49. h5 {[%clk 0:00:04.5]} 49... e4
{[%clk 0:00:27.2]} 50. Bxe4 {[%clk 0:00:03.2]} 50... Nxe4+ {[%clk 0:00:28.1]}
51. Kg6 {[%clk 0:00:02.7]} 51... Ke5 {[%clk 0:00:26.5]} 52. h6 {[%clk
0:00:02.9]} 52... Nf6 {[%clk 0:00:26.8]} 53. g4 {[%clk 0:00:01.1]} 53... Ke6
{[%clk 0:00:19.3]} 54. g5 {[%clk 0:00:02]} 54... Nd7 {[%clk 0:00:17.5]} 55. h7
{[%clk 0:00:02.9]} 55... Nf8+ {[%clk 0:00:17.7]} 56. Kg7 {[%clk 0:00:02.9]}
56... Nxh7 {[%clk 0:00:16.6]} 57. Kxh7 {[%clk 0:00:03.8]} 57... Kf5 {[%clk
0:00:16.1]} 58. g6 {[%clk 0:00:04.7]} 58... Kg4 {[%clk 0:00:16.7]} 59. g7 {[%clk
0:00:05.6]} 59... Kh5 {[%clk 0:00:17.5]} 60. g8=Q {[%clk 0:00:06.5]} 1-0

[Event "*** SCC Grand Prix: Titled Tuesday Blitz"]
[Site "Chess.com"]
[Date "2020.06.09"]
[Round "4"]
[White "OhanyanEminChess"]
[Black "MarcoRiehle"]
[Result "0-1"]
[WhiteElo "2442"]
[BlackElo "2644"]
[TimeControl "180+1"]
[EndTime "9:40:26 PDT"]
[Termination "MarcoRiehle won on time"]

1. e4 {[%clk 0:03:00.9]} 1... e5 {[%clk 0:02:59.7]} 2. Nf3 {[%clk 0:02:59.9]}
2... Nf6 {[%clk 0:03:00.3]} 3. Nxe5 {[%clk 0:02:59.3]} 3... Nxe4 {[%clk
0:03:00.5]} 4. Qe2 {[%clk 0:02:49.4]} 4... Qe7 {[%clk 0:03:00.4]} 5. Qxe4 {[%clk
0:02:46.9]} 5... d6 {[%clk 0:03:00.3]} 6. d4 {[%clk 0:02:39]} 6... dxe5 {[%clk
0:03:00]} 7. Qxe5 {[%clk 0:02:34.3]} 7... Qxe5+ {[%clk 0:02:59.5]} 8. dxe5
{[%clk 0:02:35.2]} 8... Bf5 {[%clk 0:03:00.3]} 9. Nc3 {[%clk 0:02:30.6]} 9...
Nc6 {[%clk 0:02:59.8]} 10. Bb5 {[%clk 0:02:28.1]} 10... O-O-O {[%clk 0:02:59.3]}
11. Bxc6 {[%clk 0:02:27.9]} 11... bxc6 {[%clk 0:02:58.9]} 12. Be3 {[%clk
0:02:26.6]} 12... Bxc2 {[%clk 0:02:58.9]} 13. Bxa7 {[%clk 0:02:24.7]} 13... c5
{[%clk 0:02:56.8]} 14. Rc1 {[%clk 0:02:07.1]} 14... Bd3 {[%clk 0:02:51.7]} 15.
Na4 {[%clk 0:02:01.9]} 15... c4 {[%clk 0:02:51.3]} 16. Nc5 {[%clk 0:01:41]}
16... Bxc5 {[%clk 0:02:24.8]} 17. Bxc5 {[%clk 0:01:41.9]} 17... Rhe8 {[%clk
0:02:19.3]} 18. f4 {[%clk 0:01:22.4]} 18... f6 {[%clk 0:02:19]} 19. Kf2 {[%clk
0:01:20.1]} 19... fxe5 {[%clk 0:02:18.6]} 20. Rhe1 {[%clk 0:01:20.6]} 20... exf4
{[%clk 0:01:46.5]} 21. Rxe8 {[%clk 0:01:17.6]} 21... Rxe8 {[%clk 0:01:47.4]} 22.
Re1 {[%clk 0:01:18]} 22... Rd8 {[%clk 0:01:44.2]} 23. Bb4 {[%clk 0:01:06.1]}
23... g5 {[%clk 0:01:34.9]} 24. Bc3 {[%clk 0:00:57]} 24... h6 {[%clk 0:01:21.8]}
25. Re7 {[%clk 0:00:46.7]} 25... Bf5 {[%clk 0:01:02.7]} 26. Rf7 {[%clk
0:00:39.6]} 26... Rd5 {[%clk 0:00:57.2]} 27. a4 {[%clk 0:00:37.4]} 27... Kb7
{[%clk 0:00:56]} 28. a5 {[%clk 0:00:37]} 28... h5 {[%clk 0:00:37.1]} 29. g3
{[%clk 0:00:25.5]} 29... fxg3+ {[%clk 0:00:35.5]} 30. hxg3 {[%clk 0:00:21.9]}
30... h4 {[%clk 0:00:35.9]} 31. gxh4 {[%clk 0:00:20.7]} 31... gxh4 {[%clk
0:00:36.8]} 32. Rf6 {[%clk 0:00:20.7]} 32... c6 {[%clk 0:00:29.2]} 33. Rh6
{[%clk 0:00:20]} 33... h3 {[%clk 0:00:29]} 34. Kg3 {[%clk 0:00:19.4]} 34... Rd3+
{[%clk 0:00:27.9]} 35. Kf4 {[%clk 0:00:19.4]} 35... Bd7 {[%clk 0:00:27.6]} 36.
Be5 {[%clk 0:00:09]} 36... Ka6 {[%clk 0:00:26]} 37. Bc3 {[%clk 0:00:07.1]} 37...
Rd5 {[%clk 0:00:22.5]} 38. Kg3 {[%clk 0:00:04.4]} 38... Kb5 {[%clk 0:00:22.1]}
39. Rh7 {[%clk 0:00:03.3]} 39... Rd3+ {[%clk 0:00:21.5]} 40. Kf4 {[%clk
0:00:03.1]} 40... Rd1 {[%clk 0:00:21.5]} 41. Kg3 {[%clk 0:00:02.6]} 41... Ka6
{[%clk 0:00:21]} 42. Rh8 {[%clk 0:00:03]} 42... Rg1+ {[%clk 0:00:20.5]} 43. Kf2
{[%clk 0:00:03]} 43... Rg2+ {[%clk 0:00:20.7]} 44. Kf3 {[%clk 0:00:03.7]} 44...
Bg4+ {[%clk 0:00:19.2]} 45. Kf4 {[%clk 0:00:04.3]} 45... h2 {[%clk 0:00:19.7]}
46. Ra8+ {[%clk 0:00:02.3]} 46... Kb7 {[%clk 0:00:19.8]} 47. Rh8 {[%clk
0:00:02.8]} 47... Bd7 {[%clk 0:00:20.2]} 48. Rh7 {[%clk 0:00:02.8]} 48... Ka6
{[%clk 0:00:19.8]} 49. Rh8 {[%clk 0:00:01.3]} 49... Be6 {[%clk 0:00:19.3]} 50.
Ra8+ {[%clk 0:00:01.5]} 50... Kb7 {[%clk 0:00:19.1]} 51. Rh8 {[%clk 0:00:02.4]}
51... Bd5 {[%clk 0:00:19.6]} 52. Rh7+ {[%clk 0:00:02.5]} 52... Ka6 {[%clk
0:00:19.8]} 53. Bd4 {[%clk 0:00:03.1]} 53... Kxa5 {[%clk 0:00:17.4]} 54. Ke5
{[%clk 0:00:02.5]} 54... h1=Q {[%clk 0:00:16.5]} 55. Rxh1 {[%clk 0:00:01.9]}
55... Re2+ {[%clk 0:00:16.6]} 56. Kd6 {[%clk 0:00:02.1]} 56... Bxh1 {[%clk
0:00:17.1]} 57. Kc5 {[%clk 0:00:02.4]} 57... Ka4 {[%clk 0:00:16.1]} 58. Bc3
{[%clk 0:00:03.3]} 58... Kb3 {[%clk 0:00:15.7]} 0-1

[Event "*** SCC Grand Prix: Titled Tuesday Blitz"]
[Site "Chess.com"]
[Date "2020.06.09"]
[Round "4"]
[White "pitterson"]
[Black "TomsKantans"]
[Result "0-1"]
[WhiteElo "2400"]
[BlackElo "2637"]
[TimeControl "180+1"]
[EndTime "9:40:26 PDT"]
[Termination "TomsKantans won by resignation"]

1. d4 {[%clk 0:03:00.9]} 1... Nf6 {[%clk 0:02:58.5]} 2. c4 {[%clk 0:03:00.2]}
2... g6 {[%clk 0:02:53.9]} 3. Nc3 {[%clk 0:02:59]} 3... d5 {[%clk 0:02:52.9]} 4.
cxd5 {[%clk 0:02:58.4]} 4... Nxd5 {[%clk 0:02:53.8]} 5. e4 {[%clk 0:02:58.5]}
5... Nxc3 {[%clk 0:02:54]} 6. bxc3 {[%clk 0:02:58.4]} 6... Bg7 {[%clk
0:02:54.2]} 7. Bg5 {[%clk 0:02:55.4]} 7... c5 {[%clk 0:02:53.4]} 8. Rc1 {[%clk
0:02:55.2]} 8... Qa5 {[%clk 0:02:38.8]} 9. Qd2 {[%clk 0:02:53.7]} 9... Nc6
{[%clk 0:02:15.2]} 10. Nf3 {[%clk 0:02:52.4]} 10... Bg4 {[%clk 0:02:14.3]} 11.
d5 {[%clk 0:02:47.4]} 11... Bxf3 {[%clk 0:02:13.2]} 12. gxf3 {[%clk 0:02:46.2]}
12... Ne5 {[%clk 0:02:13]} 13. Be2 {[%clk 0:02:44.7]} 13... c4 {[%clk
0:02:01.3]} 14. O-O {[%clk 0:02:39.1]} 14... Rc8 {[%clk 0:01:40.3]} 15. f4
{[%clk 0:02:22.1]} 15... Nd3 {[%clk 0:01:38.6]} 16. Bxd3 {[%clk 0:02:20.3]}
16... cxd3 {[%clk 0:01:39.5]} 17. Qxd3 {[%clk 0:02:20.1]} 17... Qc5 {[%clk
0:01:03.1]} 18. e5 {[%clk 0:02:00.9]} 18... O-O {[%clk 0:00:49.1]} 19. Rb1
{[%clk 0:01:51.7]} 19... f6 {[%clk 0:00:46.7]} 20. Bh4 {[%clk 0:01:32.6]} 20...
b6 {[%clk 0:00:46.1]} 21. Rb5 {[%clk 0:01:10.9]} 21... Qxc3 {[%clk 0:00:39.8]}
22. Qxc3 {[%clk 0:01:08.6]} 22... Rxc3 {[%clk 0:00:40.7]} 23. d6 {[%clk
0:01:08.4]} 23... exd6 {[%clk 0:00:38.1]} 24. exf6 {[%clk 0:01:02]} 24... Bxf6
{[%clk 0:00:36.6]} 25. Bxf6 {[%clk 0:01:00.5]} 25... Rxf6 {[%clk 0:00:37.5]} 26.
Rd5 {[%clk 0:01:00.3]} 26... Rc5 {[%clk 0:00:33.5]} 27. Rfd1 {[%clk 0:00:58.8]}
27... Rxd5 {[%clk 0:00:33.1]} 28. Rxd5 {[%clk 0:00:58.2]} 28... Kf7 {[%clk
0:00:34]} 29. a4 {[%clk 0:00:57.6]} 29... Ke6 {[%clk 0:00:34]} 30. Rb5 {[%clk
0:00:54.1]} 30... Rxf4 {[%clk 0:00:29.3]} 31. a5 {[%clk 0:00:53.9]} 31... bxa5
{[%clk 0:00:27.1]} 32. Rxa5 {[%clk 0:00:53.6]} 32... Rf7 {[%clk 0:00:28]} 33.
Kf1 {[%clk 0:00:50.6]} 33... d5 {[%clk 0:00:28.1]} 34. Ke2 {[%clk 0:00:49.3]}
34... Ke5 {[%clk 0:00:28.5]} 35. f3 {[%clk 0:00:45]} 35... Rb7 {[%clk
0:00:26.9]} 36. Ke3 {[%clk 0:00:38.1]} 36... g5 {[%clk 0:00:26.1]} 37. h3 {[%clk
0:00:37]} 37... h6 {[%clk 0:00:12.9]} 38. Ke2 {[%clk 0:00:31.4]} 38... Kf4
{[%clk 0:00:09.5]} 39. Rxd5 {[%clk 0:00:29.4]} 39... Kg3 {[%clk 0:00:08.4]} 40.
Rd6 {[%clk 0:00:28.2]} 40... Rh7 {[%clk 0:00:08.4]} 41. Ke3 {[%clk 0:00:24.2]}
41... Kxh3 {[%clk 0:00:08.1]} 42. f4 {[%clk 0:00:24]} 42... Kg4 {[%clk
0:00:06.6]} 43. fxg5 {[%clk 0:00:23.6]} 43... hxg5 {[%clk 0:00:07.5]} 44. Rd1
{[%clk 0:00:21.7]} 44... a5 {[%clk 0:00:06.2]} 45. Rg1+ {[%clk 0:00:20.1]} 45...
Kf5 {[%clk 0:00:06.4]} 46. Ra1 {[%clk 0:00:18.4]} 46... Re7+ {[%clk 0:00:04.6]}
47. Kf3 {[%clk 0:00:16.8]} 47... Re5 {[%clk 0:00:05.5]} 48. Kg3 {[%clk
0:00:16.6]} 48... Re3+ {[%clk 0:00:05.4]} 49. Kf2 {[%clk 0:00:16.5]} 49... Re5
{[%clk 0:00:06.3]} 50. Kg3 {[%clk 0:00:15.9]} 50... Rb5 {[%clk 0:00:06]} 51. Ra4
{[%clk 0:00:14.5]} 51... Ke6 {[%clk 0:00:06.1]} 52. Re4+ {[%clk 0:00:13.8]}
52... Kd6 {[%clk 0:00:06.1]} 53. Ra4 {[%clk 0:00:12.6]} 53... Kc6 {[%clk
0:00:05.4]} 54. Kg4 {[%clk 0:00:12.6]} 54... Rb4+ {[%clk 0:00:05.5]} 55. Rxb4
{[%clk 0:00:12]} 55... axb4 {[%clk 0:00:06.4]} 56. Kxg5 {[%clk 0:00:12.2]} 56...
b3 {[%clk 0:00:06.9]} 57. Kf4 {[%clk 0:00:11.4]} 57... b2 {[%clk 0:00:07.8]} 58.
Ke3 {[%clk 0:00:11.3]} 58... b1=Q {[%clk 0:00:08.7]} 0-1